Workbook

Sheet Итоги Юнифрут
A3: 2016-06-01 | C3: апельсин | D3: 354 | E3: 48 | G3: =ROUND(I3/1.18,2) -> 14400 | H3: =ROUND(I3-G3,2) -> 2592 | I3: =D3*E3 -> 16992
C4: груша св | D4: 480 | E4: 68 | G4: =ROUND(I4/1.18,2) -> 27661.02 | H4: =ROUND(I4-G4,2) -> 4978.98 | I4: =D4*E4 -> 32640
C5: персики | D5: 10 | E5: 185 | G5: 1567.8 | H5: 282.2 | I5: 1850
C6: виноград | D6: 8.2 | E6: 158 | G6: 1097.97 | H6: 197.63 | I6: 1295.6
C7: НДС 10%
C8: лук репч | D8: 694 | E8: 25 | G8: =ROUND(I8/1.1,2) -> 15772.73 | H8: =ROUND(I8-G8,2) -> 1577.27 | I8: =D8*E8 -> 17350
C9: огурцы св. | D9: 167 | E9: 20 | G9: 3036.36 | H9: 303.64 | I9: 3340
C10: кабачки | D10: 49.3 | E10: 45 | G10: 2016.82 | H10: 201.68 | I10: 2218.5
C11: баклажаны | D11: 15 | E11: 250 | G11: 3409.09 | H11: 340.91 | I11: 3750
J12: =SUM(I3:I11) -> 79436.1 | K12: =SUM(H3:H11) -> 10474.31

Sheet ФрешФуд
C2: НДС 18% | D2: Заказал Кол-во | E2: в накл Коли-во | F2: пришло на склад по факту | G2: исправления | H2: прайс с ндс | I2: накладная без ндс | K2: Прайс | L2: НДС | M2: Накл | N2: ждем исправленую | Q2: Товар | V2: Получен
B3: 2016-05-23 | K3: =ROUND(H3*E3,2) -> 0 | L3: =ROUND(H3*E3-I3*E3,2) -> 0 | M3: =I3*1.18*E3 -> 0 | N3: =IF(G3>0,G3*I3*1.18,I3*1.18*E3) -> 0
C4: бананы | E4: 253 | H4: 73 | I4: 61.86 | K4: 18469 | L4: 2818.42 | M4: =ROUND(I4*1.18,2)*E4 -> 18466.47 | N4: =IF(G4>0,G4*ROUND(I4*1.18,2),ROUND(I4*1.18,2)*E4) -> 18466.47
C5: груша св | E5: 210 | H5: 85 | I5: 72.03 | K5: 17850 | L5: 2723.7 | M5: =ROUND(I5*1.18,2)*E5 -> 17850 | N5: 17850
C6: лимоны | K6: 0 | L6: 0 | M6: =I6*1.18*E6 -> 0 | N6: 0
K7: 0 | L7: 0 | M7: 0 | N7: 0
K8: 0 | L8: 0 | M8: 0 | N8: 0
C9: капуста кв. 10 кг | K9: 0 | L9: 0 | M9: 0 | N9: 0
C10: огурцы сол | K10: 0 | L10: 0 | M10: 0 | N10: 0
C11: огурцы сол. 1 кг | K11: 0 | L11: 0 | M11: 0 | N11: 0
C12: виноград | E12: 40.1 | H12: 210 | I12: 177.97 | K12: 8421 | L12: 1284.4 | M12: =ROUND(I12*1.18,2)*E12 -> 8421 | N12: 8421
C13: сетка | K13: 0 | L13: 0 | M13: =I13*1.18*E13 -> 0 | N13: 0
C14: сетка | K14: 0 | L14: 0 | M14: 0 | N14: 0
K15: 0 | L15: 0 | M15: 0 | N15: 0
C16: перец зам. | K16: 0 | L16: 0 | M16: 0 | N16: 0
C17: капуста брюссельская замор. | K17: 0 | L17: 0 | M17: 0 | N17: 0
C18: капуста вцет. Замор. | K18: 0 | L18: 0 | M18: 0 | N18: 0
C19: фасоль стрюч. замор. 400 гр. | K19: 0 | L19: 0 | M19: 0 | N19: 0
C20: черная смородина замор. | E20: 1 | H20: 96 | I20: 81.36 | K20: 96 | L20: 14.64 | M20: =ROUND(I20*1.18,2)*E20 -> 96 | N20: 96
C21: клубника зам. | E21: 1 | H21: 120 | I21: 101.69 | K21: 120 | L21: 18.31 | M21: =ROUND(I21*1.18,2)*E21 -> 119.99 | N21: 119.99
C22: НДС 10%
C23: Картофель | E23: 13.65 | H23: 50 | I23: 45.45 | K23: =ROUND(H23*E23,2) -> 682.5 | L23: =ROUND(H23*E23-I23*E23,2) -> 62.11 | M23: =ROUND(I23*1.1,2)*E23 -> 682.5 | N23: =IF(G23>0,G23*ROUND(I23*1.1,2),ROUND(I23*1.1,2)*E23) -> 682.5
C24: капуста св. | K24: 0 | L24: 0 | M24: 0 | N24: 0 | Q24: Накладная | V24: оригинал получен
C25: огурцы св. | E25: 126 | H25: 57.5 | I25: 52.27 | K25: 7245 | L25: 658.98 | M25: 7245 | N25: 7245
C26: томаты св | E26: 133.1 | G26: 131.8 | H26: 50 | I26: 45.45 | K26: 6655 | L26: 605.61 | M26: 6655 | N26: 6590
C27: укроп | E27: 18 | H27: 180 | I27: 163.64 | K27: 3240 | L27: 294.48 | M27: 3240 | N27: 3240
C28: петрушка | E28: 22 | H28: 180 | I28: 163.64 | K28: 3960 | L28: 359.92 | M28: 3960 | N28: 3960
C29: кабачки | E29: 26 | H29: 42 | I29: 38.18 | K29: 1092 | L29: 99.32 | M29: 1092 | N29: 1092
C30: перец св | E30: 21.1 | H30: 300 | I30: 272.73 | K30: 6330 | L30: 575.4 | M30: 6330 | N30: 6330
C31: перец ласточка | E31: 30 | H31: 132 | I31: 120 | K31: 3960 | L31: 360 | M31: 3960 | N31: 3960
C32: Чеснок | E32: 30.4 | H32: 228 | I32: 207.27 | K32: 6931.2 | L32: 630.19 | M32: 6931.2 | N32: 6931.2
C33: баклажаны | E33: 48 | H33: 240 | I33: 218.18 | K33: 11520 | L33: 1047.36 | M33: 11520 | N33: 11520
C34: тыква | K34: 0 | L34: 0 | M34: 0 | N34: 0
C35: капуста цв. Свежая | E35: 20.8 | H35: 96 | I35: 87.27 | K35: 1996.8 | L35: 181.58 | M35: 1996.8 | N35: 1996.8
C36: корень сельдерея | E36: 5.6 | H36: 180 | I36: 163.64 | K36: 1008 | L36: 91.62 | M36: 1008 | N36: 1008
C37: редис | K37: 0 | L37: 0 | M37: 0 | N37: 0
C38: Кап Кит | E38: 3 | H38: 66 | I38: 60 | K38: 198 | L38: 18 | M38: 198 | N38: 198
C39: лук порей | E39: 9.7 | H39: 205 | I39: 186.36 | K39: 1988.5 | L39: 180.81 | M39: 1988.5 | N39: 1988.5
N40: =SUM(M3:M39) -> 101760.46 | O40: =SUM(L3:L39) -> 12024.85
H41: накл. По прайсу | J41: =SUM(K3:K39) -> 101763
C42: Фактическа первая | H42: накл. По факту | J42: =SUM(M3:M39) -> 101760.46
C43: Накладная с исправлениями | H43: ждем | J43: =SUM(N3:N39) -> 101695.46
B47: 2016-05-23 | C47: НДС 18% | D47: Заказал Кол-во | E47: Кол-во | G47: исправления | H47: прайс | I47: накладная | K47: Прайс | L47: НДС | M47: Накл | N47: ждем исправленую | Q47: Товар | V47: Получен
K48: =ROUND(H48*E48,2) -> 0 | L48: =ROUND(H48*E48-I48*E48,2) -> 0 | M48: =I48*1.18*E48 -> 0 | N48: =IF(G48>0,G48*I48*1.18,I48*1.18*E48) -> 0
C49: бананы | K49: 0 | L49: 0 | M49: =ROUND(I49*1.18,2)*E49 -> 0 | N49: =IF(G49>0,G49*ROUND(I49*1.18,2),ROUND(I49*1.18,2)*E49) -> 0
C50: груша св | K50: 0 | L50: 0 | M50: =ROUND(I50*1.18,2)*E50 -> 0 | N50: 0
C51: лимоны | K51: 0 | L51: 0 | M51: =I51*1.18*E51 -> 0 | N51: 0
K52: 0 | L52: 0 | M52: 0 | N52: 0
K53: 0 | L53: 0 | M53: 0 | N53: 0
C54: капуста кв. 10 кг | K54: 0 | L54: 0 | M54: 0 | N54: 0
C55: огурцы сол | K55: 0 | L55: 0 | M55: 0 | N55: 0
C56: огурцы сол. 1 кг | K56: 0 | L56: 0 | M56: 0 | N56: 0
C57: виноград | K57: 0 | L57: 0 | M57: =ROUND(I57*1.18,2)*E57 -> 0 | N57: 0
C58: сетка | K58: 0 | L58: 0 | M58: =I58*1.18*E58 -> 0 | N58: 0
C59: сетка | K59: 0 | L59: 0 | M59: 0 | N59: 0
K60: 0 | L60: 0 | M60: 0 | N60: 0
C61: перец зам. | K61: 0 | L61: 0 | M61: 0 | N61: 0
C62: капуста брюссельская замор. | K62: 0 | L62: 0 | M62: 0 | N62: 0
C63: капуста вцет. Замор. | K63: 0 | L63: 0 | M63: 0 | N63: 0
C64: фасоль стрюч. замор. 400 гр. | K64: 0 | L64: 0 | M64: 0 | N64: 0
C65: черная смородина замор. | K65: 0 | L65: 0 | M65: =ROUND(I65*1.18,2)*E65 -> 0 | N65: 0
C66: клубника зам. | K66: 0 | L66: 0 | M66: =ROUND(I66*1.18,2)*E66 -> 0 | N66: 0
C67: НДС 10%
C68: Картофель | K68: =ROUND(H68*E68,2) -> 0 | L68: =ROUND(H68*E68-I68*E68,2) -> 0 | M68: =ROUND(I68*1.1,2)*E68 -> 0 | N68: =IF(G68>0,G68*ROUND(I68*1.1,2),ROUND(I68*1.1,2)*E68) -> 0
C69: капуста св. | K69: 0 | L69: 0 | M69: 0 | N69: 0 | Q69: Накладная | V69: оригинал ждем
C70: огурцы св. | E70: 240 | H70: 53 | K70: 12720 | L70: 12720 | M70: 0 | N70: 0
C71: томаты св | E71: 220 | H71: 55.5 | K71: 12210 | L71: 12210 | M71: 0 | N71: 0
C72: укроп | E72: 10 | H72: 180 | K72: 1800 | L72: 1800 | M72: 0 | N72: 0
C73: петрушка | E73: 16 | H73: 180 | K73: 2880 | L73: 2880 | M73: 0 | N73: 0
C74: Лук зел | E74: 11 | H74: 145 | K74: 1595 | L74: 1595 | M74: 0 | N74: 0
C75: кабачки | K75: 0 | L75: 0 | M75: 0 | N75: 0
C76: перец св | E76: 16 | H76: 168 | K76: 2688 | L76: 2688 | M76: 0 | N76: 0
C77: перец ласточка | K77: 0 | L77: 0 | M77: 0 | N77: 0
C78: Чеснок | K78: 0 | L78: 0 | M78: 0 | N78: 0
C79: баклажаны | K79: 0 | L79: 0 | M79: 0 | N79: 0
C80: тыква | K80: 0 | L80: 0 | M80: 0 | N80: 0
C81: капуста цв. Свежая | E81: 31.45 | H81: 96 | K81: 3019.2 | L81: 3019.2 | M81: 0 | N81: 0
C82: корень сельдерея | K82: 0 | L82: 0 | M82: 0 | N82: 0
C83: редис | E83: 2.5 | H83: 48 | K83: 120 | L83: 120 | M83: 0 | N83: 0
C84: Кап Кит | K84: 0 | L84: 0 | M84: 0 | N84: 0
C85: лук порей | E85: 5 | H85: 180 | K85: 900 | L85: 900 | M85: 0 | N85: 0
N86: =SUM(M48:M85) -> 0 | O86: =SUM(L48:L85) -> 37932.2
H87: накл. По прайсу | J87: =SUM(K48:K85) -> 37932.2
C88: Фактическа первая | H88: накл. По факту | J88: =SUM(M48:M85) -> 0
C89: Накладная с исправлениями | H89: ждем | J89: =SUM(N48:N85) -> 0
A94: 1 | B94: 1900-01-25T01:12:00 | C94: НДС 18% | D94: заказал кол-во | E94: Кол-во | F94: пришло на склад по факту | G94: исправления | H94: прайс | I94: накладная | K94: Прайс | L94: НДС | M94: Накл | N94: ждем исправленую | Q94: Товар | V94: Получен
A95: 2 | K95: =ROUND(H95*E95,2) -> 0 | L95: =ROUND(H95*E95-I95*E95,2) -> 0 | M95: =I95*1.18*E95 -> 0 | N95: =IF(G95>0,G95*I95*1.18,I95*1.18*E95) -> 0
A96: 3 | C96: бананы | K96: 0 | L96: 0 | M96: =ROUND(I96*1.18,2)*E96 -> 0 | N96: =IF(G96>0,G96*ROUND(I96*1.18,2),ROUND(I96*1.18,2)*E96) -> 0
A97: 4 | C97: груша св | K97: 0 | L97: 0 | M97: =ROUND(I97*1.18,2)*E97 -> 0 | N97: 0
A98: 5 | C98: лимоны | K98: 0 | L98: 0 | M98: =I98*1.18*E98 -> 0 | N98: 0
A99: 6 | K99: 0 | L99: 0 | M99: 0 | N99: 0
A100: 7 | K100: 0 | L100: 0 | M100: 0 | N100: 0
A101: 8 | C101: капуста кв. 10 кг | K101: 0 | L101: 0 | M101: 0 | N101: 0
A102: 9 | C102: огурцы сол | K102: 0 | L102: 0 | M102: 0 | N102: 0
A103: 10 | C103: огурцы сол. 1 кг | K103: 0 | L103: 0 | M103: 0 | N103: 0
A104: 11 | C104: виноград | K104: 0 | L104: 0 | M104: =ROUND(I104*1.18,2)*E104 -> 0 | N104: 0
A105: 12 | C105: сетка | K105: 0 | L105: 0 | M105: =I105*1.18*E105 -> 0 | N105: 0
A106: 13 | C106: сетка | K106: 0 | L106: 0 | M106: 0 | N106: 0
A107: 14 | K107: 0 | L107: 0 | M107: 0 | N107: 0
A108: 15 | C108: перец зам. | K108: 0 | L108: 0 | M108: 0 | N108: 0
A109: 16 | C109: капуста брюссельская замор. | K109: 0 | L109: 0 | M109: 0 | N109: 0
A110: 17 | C110: капуста вцет. Замор. | K110: 0 | L110: 0 | M110: 0 | N110: 0
A111: 18 | C111: фасоль стрюч. замор. 400 гр. | K111: 0 | L111: 0 | M111: 0 | N111: 0
A112: 19 | C112: черная смородина замор. | K112: 0 | L112: 0 | M112: =ROUND(I112*1.18,2)*E112 -> 0 | N112: 0
A113: 20 | C113: клубника зам. | K113: 0 | L113: 0 | M113: =ROUND(I113*1.18,2)*E113 -> 0 | N113: 0
A114: 21 | C114: НДС 10%
A115: 22 | C115: Картофель | J115: =ROUND(I115*1.1,2) -> 0 | K115: =ROUND(H115*E115,2) -> 0 | L115: =ROUND(H115*E115-I115*E115,2) -> 0 | M115: =ROUND(I115*1.1,2)*E115 -> 0 | N115: =IF(G115>0,G115*ROUND(I115*1.1,2),ROUND(I115*1.1,2)*E115) -> 0
A116: 23 | C116: капуста св. | J116: 0 | K116: 0 | L116: 0 | M116: =ROUND(I116*1.1,2)*E116 -> 0 | N116: 0 | Q116: Накладная | V116: оригинал получен
A117: 24 | C117: огурцы св. | E117: 245.1 | G117: 231 | H117: 53 | I117: 47.27 | J117: =ROUND(I117*1.1,2) -> 52 | K117: 12990.3 | L117: 1404.42 | M117: =J117*E117 -> 12745.2 | N117: 12012
A118: 25 | C118: томаты св | E118: 223.5 | G118: 220.5 | H118: 55.5 | I118: 50 | J118: =ROUND(I118*1.1,2) -> 55 | K118: 12404.25 | L118: 1229.25 | M118: 12292.5 | N118: 12127.5
A119: 26 | C119: укроп | E119: 10 | H119: 180 | I119: 163.64 | J119: 180 | K119: 1800 | L119: 163.6 | M119: 1800 | N119: 1800
A120: 27 | C120: петрушка | E120: 16 | H120: 180 | I120: 163.64 | J120: 180 | K120: 2880 | L120: 261.76 | M120: 2880 | N120: 2880
A121: 28 | C121: Лук зел | E121: 11 | H121: 145 | I121: 131.82 | J121: 145 | K121: 1595 | L121: 144.98 | M121: 1595 | N121: 1595
A122: 29 | C122: кабачки | J122: 0 | K122: 0 | L122: 0 | M122: 0 | N122: 0
A123: 30 | C123: перец св | E123: 16 | H123: 168 | I123: 152.73 | J123: 168 | K123: 2688 | L123: 244.32 | M123: 2688 | N123: 2688
A124: 31 | C124: перец ласточка | J124: 0 | K124: 0 | L124: 0 | M124: 0 | N124: 0
A125: 32 | C125: Чеснок | J125: 0 | K125: 0 | L125: 0 | M125: 0 | N125: 0
A126: 33 | C126: баклажаны | J126: 0 | K126: 0 | L126: 0 | M126: 0 | N126: 0
A127: 34 | C127: тыква | J127: 0 | K127: 0 | L127: 0 | M127: 0 | N127: 0
A128: 35 | C128: капуста цв. Свежая | E128: 32 | G128: 32 | H128: 96 | I128: 87.27 | J128: 96 | K128: 3072 | L128: 279.36 | M128: 3072 | N128: 3072
A129: 36 | C129: корень сельдерея | J129: 0 | K129: 0 | L129: 0 | M129: 0 | N129: 0
A130: 37 | C130: редис | E130: 2.5 | G130: 2.484 | H130: 48 | I130: 43.64 | J130: 48 | M130: 120
A131: 38 | C131: Кап Кит | J131: 0 | K131: =ROUND(H131*E131,2) -> 0 | L131: =ROUND(H131*E131-I131*E131,2) -> 0 | M131: 0 | N131: =IF(G131>0,G131*ROUND(I131*1.1,2),ROUND(I131*1.1,2)*E131) -> 0
A132: 39 | C132: лук порей | E132: 4.8 | G132: 4.2 | H132: 180 | I132: 163.64 | J132: 180 | K132: =ROUND(H132*E132,2) -> 864 | L132: =ROUND(H132*E132-I132*E132,2) -> 78.53 | M132: 864 | N132: =IF(G132>0,G132*ROUND(I132*1.1,2),ROUND(I132*1.1,2)*E132) -> 756
A133: 40 | N133: =SUM(M95:M132) -> 38056.7 | O133: =SUM(L95:L132) -> 3806.22
A134: 41
A135: 42 | H135: накл. По прайсу | J135: =SUM(K95:K132) -> 38293.55
A136: 43 | C136: Фактическа первая | H136: накл. По факту | J136: =SUM(M95:M132) -> 38056.7
A137: 44 | C137: Накладная с исправлениями | H137: ждем | J137: =SUM(N95:N132) -> 36930.5
B145: 2016-05-30 | C145: НДС 18% | D145: Заказал Кол-во | E145: в накл Коли-во | G145: исправления | H145: прайс | I145: накладная | K145: Прайс | L145: НДС | M145: Накл | N145: ждем исправленую | Q145: Товар | V145: Получен
J146: =ROUND(I146*1.18,2) -> 0 | K146: =ROUND(H146*E146,2) -> 0 | L146: =ROUND(H146*E146-I146*E146,2) -> 0 | M146: =I146*1.18*E146 -> 0 | N146: =IF(G146>0,G146*I146*1.18,I146*1.18*E146) -> 0
C147: бананы | D147: 90 | E147: 96.5 | H147: 64.8 | I147: 54.92 | J147: 64.81 | K147: 6253.2 | L147: 953.42 | M147: =ROUND(I147*1.18,2)*E147 -> 6254.165 | N147: =IF(G147>0,G147*ROUND(I147*1.18,2),ROUND(I147*1.18,2)*E147) -> 6254.165
C148: груша св | D148: 300 | E148: 305 | H148: 79 | I148: 66.95 | J148: 79 | K148: 24095 | L148: 3675.25 | M148: =ROUND(I148*1.18,2)*E148 -> 24095 | N148: 24095
C149: лимоны | D149: 8 | E149: 10.1 | H149: 133 | I149: 112.7 | J149: 132.99 | K149: 1343.3 | L149: 205.03 | M149: =I149*1.18*E149 -> 1343.1586 | N149: 1343.199
J150: 0 | K150: 0 | L150: 0 | M150: 0 | N150: 0
J151: 0 | K151: 0 | L151: 0 | M151: 0 | N151: 0
C152: капуста кв. 10 кг | J152: 0 | K152: 0 | L152: 0 | M152: 0 | N152: 0
C153: огурцы сол | J153: 0 | K153: 0 | L153: 0 | M153: 0 | N153: 0
C154: огурцы сол. 1 кг | J154: 0 | K154: 0 | L154: 0 | M154: 0 | N154: 0
C155: виноград | J155: 0 | K155: 0 | L155: 0 | M155: =ROUND(I155*1.18,2)*E155 -> 0 | N155: 0
C156: сетка | J156: 0 | K156: 0 | L156: 0 | M156: =I156*1.18*E156 -> 0 | N156: 0
C157: сетка | J157: 0 | K157: 0 | L157: 0 | M157: 0 | N157: 0
J158: 0 | K158: 0 | L158: 0 | M158: 0 | N158: 0
C159: перец зам. | J159: 0 | K159: 0 | L159: 0 | M159: 0 | N159: 0
C160: капуста брюссельская замор. | J160: 0 | K160: 0 | L160: 0 | M160: 0 | N160: 0
C161: капуста вцет. Замор. | J161: 0 | K161: 0 | L161: 0 | M161: 0 | N161: 0
C162: фасоль стрюч. замор. 400 гр. | J162: 0 | K162: 0 | L162: 0 | M162: 0 | N162: 0
C163: черная смородина замор. | J163: 0 | K163: 0 | L163: 0 | M163: =ROUND(I163*1.18,2)*E163 -> 0 | N163: 0
C164: клубника зам. | J164: =ROUND(I164*1.18,2) -> 0 | K164: 0 | L164: 0 | M164: =ROUND(I164*1.18,2)*E164 -> 0 | N164: 0
C165: НДС 10%
C166: Картофель | J166: =ROUND(I166*1.1,2) -> 0 | K166: =ROUND(H166*E166,2) -> 0 | L166: =ROUND(H166*E166-I166*E166,2) -> 0 | M166: =ROUND(I166*1.1,2)*E166 -> 0 | N166: =IF(G166>0,G166*ROUND(I166*1.1,2),ROUND(I166*1.1,2)*E166) -> 0
C167: Репа | D167: 150 | E167: 167 | H167: 40 | I167: 36.36 | J167: 40 | K167: 6680 | L167: 607.88 | M167: =ROUND(I167*1.1,2)*E167 -> 6680 | N167: 6680 | Q167: Накладная | V167: оригинал ждем
C168: огурцы св. | D168: 220 | E168: 220 | G168: 218 | H168: 45 | I168: 40.91 | J168: 45 | K168: 9900 | L168: 899.8 | M168: =J168*E168 -> 9900 | N168: 9810
C169: томаты св | D169: 60 | E169: 61 | H169: 98 | I169: 88.91 | J169: 97.8 | K169: 5978 | L169: 554.49 | M169: 5965.8 | N169: 5965.8
C170: укроп | D170: 13 | E170: 13 | H170: 180 | I170: 174.55 | J170: 192.01 | K170: 2340 | L170: 70.85 | M170: 2496.13 | N170: 2496.13
C171: петрушка | D171: 13 | E171: 13 | H171: 192 | I171: 169.09 | J171: 186 | K171: 2496 | L171: 297.83 | M171: 2418 | N171: 2418
C172: Лук зел | D172: 11 | E172: 11 | H172: 145 | I172: 131.82 | J172: 145 | K172: 1595 | L172: 144.98 | M172: 1595 | N172: 1595
C173: кабачки | J173: 0 | K173: 0 | L173: 0 | M173: 0 | N173: 0
C174: перец св | D174: 35 | E174: 35 | H174: 276 | I174: 250.91 | J174: 276 | K174: 9660 | L174: 878.15 | M174: 9660 | N174: 9660
C175: перец ласточка | D175: 5 | E175: 5.3 | H175: 168 | I175: 152.73 | J175: 168 | K175: 890.4 | L175: 80.93 | M175: 890.4 | N175: 890.4
C176: Чеснок | J176: 0 | K176: 0 | L176: 0 | M176: 0 | N176: 0
C177: баклажаны | J177: 0 | K177: 0 | L177: 0 | M177: 0 | N177: 0
C178: тыква | J178: 0 | K178: 0 | L178: 0 | M178: 0 | N178: 0
C179: капуста цв. Свежая | J179: 0 | K179: 0 | L179: 0 | M179: 0 | N179: 0
C180: корень сельдерея | J180: 0 | K180: 0 | L180: 0 | M180: 0 | N180: 0
C181: редис | J181: 0 | M181: 0
C182: Кап Кит | J182: 0 | K182: =ROUND(H182*E182,2) -> 0 | L182: =ROUND(H182*E182-I182*E182,2) -> 0 | M182: 0 | N182: =IF(G182>0,G182*ROUND(I182*1.1,2),ROUND(I182*1.1,2)*E182) -> 0
C183: лук порей | D183: 5 | E183: 5.3 | H183: 180 | I183: 163.64 | J183: 180 | K183: =ROUND(H183*E183,2) -> 954 | L183: =ROUND(H183*E183-I183*E183,2) -> 86.71 | M183: 954 | N183: =IF(G183>0,G183*ROUND(I183*1.1,2),ROUND(I183*1.1,2)*E183) -> 954
J184: 0 | N184: =SUM(M146:M183) -> 72251.6536 | O184: =SUM(L146:L183) -> 8455.32
H186: накл. По прайсу | J186: =SUM(K146:K183) -> 72184.9
C187: Фактическа первая | H187: накл. По факту | J187: =SUM(M146:M183) -> 72251.6536
C188: Накладная с исправлениями | H188: ждем | J188: =SUM(N146:N183) -> 72161.694
A197: 1 | B197: 2016-06-01 | C197: НДС 18% | D197: Заказал Кол-во | E197: в накл Коли-во | G197: исправления | H197: прайс | I197: накладная | K197: Прайс | L197: НДС | M197: Накл | N197: ждем исправленую | Q197: Товар | V197: Получен
A198: 2 | F198: =IF(E198>0,IF(G198>0,G198,E198),"") ->  | J198: =IF(I198=0,"",ROUND(I198*1.18,2)) ->  | K198: =IF(H198=0,"",ROUND(H198*F198,2)) ->  | L198: =IF(I198=0,"",ROUND(H198*F198-I198*F198,2)) ->  | M198: =IF(I198=0,"",ROUND(I198*1.18*E198,2)) ->  | N198: =IF(I198=0,"",IF(G198>0,ROUND(G198*I198*1.18,2),(ROUND(I198*1.18*E198,2)))) -> 
A199: 3 | C199: бананы | D199: 130 | E199: 131.2 | F199: =IF(E199>0,IF(G199>0,G199,E199),"") -> 131.2 | H199: 64.8 | I199: 54.92 | J199: =IF(I199=0,"",ROUND(I199*1.18,2)) -> 64.81 | K199: =IF(H199=0,"",ROUND(H199*F199,2)) -> 8501.76 | L199: =IF(I199=0,"",ROUND(H199*F199-I199*F199,2)) -> 1296.26 | M199: 8502.49 | N199: =IF(I199=0,"",IF(G199>0,ROUND(G199*I199*1.18,2),(ROUND(I199*1.18*E199,2)))) -> 8502.49
A200: 4 | C200: груша св | D200: 200 | E200: 201 | F200: =IF(E200>0,IF(G200>0,G200,E200),"") -> 201 | H200: 79 | I200: 66.95 | J200: 79 | K200: 15879 | L200: 2422.05 | M200: 15879.2 | N200: 15879.2
A201: 5 | C201: лимоны
A202: 6 | C202: й
A203: 7 | C203: й
A204: 8 | C204: капуста кв. 10 кг
A205: 9 | C205: огурцы сол
A206: 10 | C206: огурцы сол. 1 кг
A207: 11 | C207: виноград
A208: 12 | C208: сетка
A209: 13 | C209: сетка
A210: 14 | C210: й
A211: 15 | C211: перец зам.
A212: 16 | C212: капуста брюссельская замор.
A213: 17 | C213: капуста вцет. Замор.
A214: 18 | C214: фасоль стрюч. замор. 400 гр.
A215: 19 | C215: черная смородина замор.
A216: 20 | C216: клубника зам. | M216: =IF(I216=0,"",ROUND(I216*1.18*E216,2)) -> 
A217: 21 | C217: НДС 10%
A218: 22 | C218: Картофель | D218: 100 | E218: 124 | F218: 124 | H218: 20 | I218: 18.18 | J218: =IF(I218=0,"",ROUND(I218*1.1,2)) -> 20 | K218: 2480 | L218: 225.68 | M218: =IF(I218=0,"",ROUND(I218*1.1*E218,2)) -> 2479.75 | N218: =IF(I218=0,"",IF(G218>0,ROUND(G218*I218*1.1,2),(ROUND(I218*1.1*E218,2)))) -> 2479.75
A219: 23 | C219: Репа | D219: 50 | E219: 60.5 | F219: 60.5 | H219: 40 | I219: 36.36 | J219: =IF(I219=0,"",ROUND(I219*1.1,2)) -> 40 | K219: 2420 | L219: 220.22 | M219: =IF(I219=0,"",ROUND(I219*1.1*E219,2)) -> 2419.76 | N219: =IF(I219=0,"",IF(G219>0,ROUND(G219*I219*1.1,2),(ROUND(I219*1.1*E219,2)))) -> 2419.76 | Q219: Накладная | V219: оригинал ждем
A220: 24 | C220: огурцы св. | D220: 150 | E220: 150 | F220: 150 | H220: 25 | I220: 22.73 | J220: 25 | K220: 3750 | L220: 340.5 | M220: 3750.45 | N220: 3750.45
A221: 25 | C221: томаты св | D221: 220 | E221: 233 | F221: 225.1 | G221: 225.1 | H221: 78 | I221: 70.91 | J221: 78 | K221: 17557.8 | L221: 1595.96 | M221: 18174.23 | N221: 17558.03
A222: 26 | C222: укроп | D222: 12 | E222: 12 | F222: 12 | H222: 204 | I222: 185.45 | J222: 204 | K222: 2448 | L222: 222.6 | M222: 2447.94 | N222: 2447.94
A223: 27 | C223: петрушка | D223: 16 | E223: 16 | F223: 16 | H223: 204 | I223: 185.45 | J223: 204 | K223: 3264 | L223: 296.8 | M223: 3263.92 | N223: 3263.92
A224: 28 | C224: Лук зел | D224: 10 | E224: 10 | F224: 9.8 | G224: 9.8 | H224: 145 | I224: 131.82 | J224: 145 | K224: 1421 | L224: 129.16 | M224: 1450.02 | N224: 1421.02
... 61 more rows

Sheet Лист1
A2: 42522 | G2: 0 | H2: =ROUND(I2-G2,2) -> 0 | I2: =D2*E2 -> 0
C3: бананы | D3: 131.2 | E3: 64.8 | G3: 7204.88 | H3: 1296.88 | I3: 8501.76
C4: груша св | D4: 201 | E4: 79 | G4: 13456.78 | H4: 2422.22 | I4: 15879
C5: лимоны | G5: 0 | H5: 0 | I5: 0
C6: й | G6: 0 | H6: 0 | I6: 0
C7: й | G7: 0 | H7: 0 | I7: 0
C8: капуста кв. 10 кг | G8: 0 | H8: 0 | I8: 0
C9: огурцы сол | G9: 0 | H9: 0 | I9: 0
C10: огурцы сол. 1 кг | G10: 0 | H10: 0 | I10: 0
C11: виноград | G11: 0 | H11: 0 | I11: 0
C12: сетка | G12: 0 | H12: 0 | I12: 0
C13: сетка | G13: 0 | H13: 0 | I13: 0
C14: й | G14: 0 | H14: 0 | I14: 0
C15: перец зам. | G15: 0 | H15: 0 | I15: 0
C16: капуста брюссельская замор. | G16: 0 | H16: 0 | I16: 0
C17: капуста вцет. Замор. | G17: 0 | H17: 0 | I17: 0
C18: фасоль стрюч. замор. 400 гр. | G18: 0 | H18: 0 | I18: 0
C19: черная смородина замор. | G19: 0 | H19: 0 | I19: 0
C20: клубника зам. | G20: 0 | H20: 0 | I20: 0
C21: НДС 10% | G21: 0 | H21: 0 | I21: 0
C22: Картофель | D22: 124 | E22: 20 | G22: 2254.55 | H22: 225.45 | I22: 2480
C23: Репа | D23: 60.5 | E23: 40 | G23: 2200 | H23: 220 | I23: 2420
C24: огурцы св. | D24: 150 | E24: 25 | G24: 3409.09 | H24: 340.91 | I24: 3750
C25: томаты св | D25: 225.1 | E25: 78 | G25: 15961.64 | H25: 1596.16 | I25: 17557.8
C26: укроп | D26: 12 | E26: 204 | G26: 2225.45 | H26: 222.55 | I26: 2448
C27: петрушка | D27: 16 | E27: 204 | G27: 2967.27 | H27: 296.73 | I27: 3264
C28: Лук зел | D28: 9.8 | E28: 145 | G28: 1291.82 | H28: 129.18 | I28: 1421
C29: кабачки | G29: 0 | H29: 0 | I29: 0
C30: перец св | G30: 0 | H30: 0 | I30: 0
C31: перец ласточка | D31: 10.2 | E31: 168 | G31: 1557.82 | H31: 155.78 | I31: 1713.6
C32: Чеснок | G32: 0 | H32: 0 | I32: 0
C33: баклажаны | G33: 0 | H33: 0 | I33: 0
C34: тыква | G34: 0 | H34: 0 | I34: 0
C35: капуста цв. Свежая | D35: 11.5 | E35: 165 | G35: 1725 | H35: 172.5 | I35: 1897.5
C36: корень сельдерея | G36: 0 | H36: 0 | I36: 0
C37: редис | G37: 0 | H37: 0 | I37: 0
C38: Кап Кит | G38: 0 | H38: 0 | I38: 0
C39: лук порей | G39: 0 | H39: 0 | I39: 0
C40: кенза | D40: 1 | E40: 436 | G40: 396.36 | H40: 39.64 | I40: 436
J41: 61768.66 | K41: 7118
